Cogmind - Beta 14 @@@ ROGUE MODE // 2024.08.19 @ 01:13:50 Player: MELT Result: Destroyed by H-77 Assassin with Coil Gun Performance ------------- Evolutions (6) 3000 Regions Visited (13) 2600 Robots Destroyed (98) 490 Value Destroyed (3238) 3238 Prototype IDs (4) 80 Alien Tech Used (0) 0 Bonus (1031) 1031 TOTAL SCORE: 10439 Bonus ------- High Alert Combat Kills 84 Follower Combat Kills 881 Entered DSFs 500 Friendly Fire -434 Cogmind --------- Core Integrity 0/1150 Matter 300/300 Energy 99/100 System Corruption 0% Temperature Cool (0) Movement Core (50) Location -4/Factory Parts ------- > --- POWER (2) -------- (None) > --- PROPULSION (6) --- (None) > --- UTILITY (8) ------ Transport Network Coupler Advanced Targeting Computer > --- WEAPON (3) ------- (None) > --- INVENTORY (5) ---- Layered Light Armor Plating Layered Light Armor Plating Heavy Gauss Cannon Peak State ------------ > --- POWER ------------ Fission Core Neutrino Core > --- PROPULSION ------- Carbon-fiber Leg Carbon-fiber Leg Flexi-carbon Leg Enhanced Armored Leg Enhanced Armored Leg > --- UTILITY ---------- Advanced Heat Sink Advanced Heat Sink Advanced Weight Redist. System Transport Network Coupler Advanced Targeting Computer Advanced Targeting Computer Improved Light Armor Plating > --- WEAPON ----------- Heavy Beamcaster Tiamat Missile Launcher Power Sword > --- INVENTORY -------- Light Angular Momentum Engine Bore Cannon Tiamat Missile Launcher Tiamat Missile Launcher [Rating: 79] Favorites ----------- Power Improved Deuterium Engine Engine Improved Deuterium Engine Power Core Light Nuclear Core Propulsion Aluminum Leg Treads Medium Treads Leg Aluminum Leg Wheel Wheel Hover Unit Antigrav System Flight Unit Field Propulsion Array Utility Medium Storage Unit Device Advanced Heat Sink Storage Medium Storage Unit Processor Transport Network Coupler Hackware Hacking Suite Protection Improved Light Armor Plating Weapon Heavy Mace Energy Gun Heavy Particle Gun Ballistic Gun Assault Rifle Ballistic Cannon Gauss Cannon Launcher Heavy Missile Launcher Impact Weapon Heavy Mace Slashing Weapon Power Sword Build | -11 -10 -10 -9 -9 -8 -7 -7 -7 -6 -6 -5 -5 -4 ------- Run | Yrd Mat Min Mat Min Mat Fac Low Low Fac DSF Fac Ext Fac Slots Evolved 12 | . . . 2 . 2 2 . . 2 . 2 . 2 Power 1 | . . . . . . 1 . . . . . . . Propulsion 4 | . . . 2 . . 1 . . . . . . 1 Utility 6 | . . . . . 2 . . . 1 . 2 . 1 Weapon 1 | . . . . . . . . . 1 . . . . Parts Attached 144 | 6 13 3 6 6 24 7 7 . 5 1 16 44 6 Power 23 | 1 1 . . 1 5 2 . . 2 . 2 8 1 Engine 13 | 1 . . . 1 2 2 . . 2 . 1 4 . Core 10 | . 1 . . . 3 . . . . . 1 4 1 Reactor . | . . . . . . . . . . . . . . Propulsion 55 | 2 6 1 4 3 10 1 3 . . . 5 17 3 Treads 8 | . 3 . . 1 . . . . . . 2 2 . Leg 41 | 2 3 1 4 . 10 1 3 . . . 3 14 . Wheel 3 | . . . . 2 . . . . . . . 1 . Hover 2 | . . . . . . . . . . . . . 2 Flight 1 | . . . . . . . . . . . . . 1 Utility 32 | 1 3 1 . 1 5 1 1 . 2 . 7 8 2 Device 13 | . . 1 . 1 2 . 1 . 1 . 3 3 1 Storage 5 | 1 2 . . . 1 . . . . . . 1 . Processor 6 | . . . . . 1 . . . . . 2 2 1 Hackware 2 | . 1 . . . 1 . . . . . . . . Protection 6 | . . . . . . 1 . . 1 . 2 2 . Artifact . | . . . . . . . . . . . . . . Weapon 34 | 2 3 1 2 1 4 3 3 . 1 1 2 11 . Energy Gun 7 | . 1 . . . 2 1 1 . . . 1 1 . Energy Cannon . | . . . . . . . . . . . . . . Ballistic Gun 6 | 2 1 1 1 . . . . . . . . 1 . Ballistic Cannon 5 | . . . . . 1 . 1 . 1 . . 2 . Launcher 8 | . 1 . . 1 . 2 . . . . 1 3 . Special Weapon . | . . . . . . . . . . . . . . Impact Weapon 3 | . . . 1 . 1 . 1 . . . . . . Slashing Weapon 5 | . . . . . . . . . . 1 . 4 . Piercing Weapon . | . . . . . . . . . . . . . . Special Melee Weapon . | . . . . . . . . . . . . . . Unidentified Prototypes 4 | . . . . 1 1 . . . . . 1 1 . Parts Lost 80 | . 1 3 2 5 2 1 8 . . 10 . 40 8 Power 13 | . . . . 1 1 . 1 . . 2 . 7 1 Propulsion 32 | . 1 1 1 3 1 . 5 . . 3 . 16 1 Utility 18 | . . 1 . . . 1 1 . . 3 . 7 5 Weapon 17 | . . 1 1 1 . . 1 . . 2 . 10 1 Highest Loss Streak 14 | . 1 3 1 3 1 1 8 . . 10 . 14 8 To Critical Strikes . | . . . . . . . . . . . . . . Average Slot Usage (%) 85 | . 97 94 95 72 96 99 82 76 86 77 82 84 51 Engine 6 | . 9 . . 3 2 15 10 7 13 12 3 3 4 Core 3 | . 4 14 11 3 5 . . . . . 1 4 . Treads 2 | . 4 . . 11 1 . . . . . 7 2 . Leg 22 | . 23 26 42 11 27 38 26 23 20 16 13 19 . Wheel 1 | . . . . 7 4 . . . . . . . . Device 10 | . . 9 11 11 10 7 9 15 17 11 11 14 7 Storage 7 | . 14 14 11 11 9 7 7 7 6 6 5 1 4 Processor 8 | . . . . . 9 7 7 7 6 6 8 16 21 Hackware 2 | . 12 4 . . 7 4 . . . . . . . Protection 1 | . . . . . . 2 2 . 2 5 8 3 . Energy Gun 3 | . 12 . . . 7 5 2 . . . 5 1 . Ballistic Gun 2 | . 13 23 9 . . . . . . . . . . Ballistic Cannon 2 | . . . . . 2 5 4 7 13 11 . . . Launcher 1 | . 1 1 . 2 . 2 2 . . . 5 3 . Impact Weapon 2 | . . . 9 11 7 . 4 7 6 . . . . Slashing Weapon 1 | . . . . . . . . . . 5 5 5 4 Peak Build Rating 79 | 6 12 12 14 16 34 42 42 30 39 41 72 79 55 Average Rating 35 | 4 9 10 13 10 30 40 33 30 37 37 55 61 39 On Entrance 23 | . 6 12 10 12 16 34 42 30 30 39 11 72 20 Naked Turns . | . . . . . . . . . . . . . . Heaviest Build 53 | 13 19 19 21 20 30 48 48 35 53 53 42 46 21 Greatest Support 104 | 20 40 20 40 30 57 67 67 33 33 33 67 104 24 Greatest Overweight (x) 10 | 1 1 1 . 4 1 . 2 1 1 6 2 10 4 Average Overweight (x) . | . . . . . . . . 1 1 1 . . . Largest Inventory Capacity 10 | 8 10 10 10 10 10 10 10 10 10 10 10 10 10 Average Capacity 9 | 7 8 10 10 10 10 10 10 10 10 10 10 6 9 Most Carried 10 | 6 9 8 9 9 10 10 10 10 9 10 10 10 3 Average Carried 7 | 3 7 8 8 8 9 8 9 10 7 9 7 4 1 Final Capacity 10 | 8 10 10 10 10 10 10 10 10 10 10 10 10 5 Final Carried 10 | 6 8 8 9 9 10 10 10 10 9 10 10 . 3 Class Distribution -------------------- 56% | Scavenger-Mutant 43% | Mutant Dominant Class ---------------- Mutant | -10/Materials Mutant | -10/Mines Mutant | -9/Materials Mutant | -9/Mines Scavenger-Mutant | -8/Materials Scavenger-Mutant | -7/Factory Mutant | -7/Lower Caves Mutant | -7/Lower Caves Mutant | -6/Factory Mutant | -6/DSF Scavenger-Mutant | -5/Factory Scavenger-Mutant | -5/Extension Scavenger-Mutant | -4/Factory Resources | -11 -10 -10 -9 -9 -8 -7 -7 -7 -6 -6 -5 -5 -4 ----------- Run | Yrd Mat Min Mat Min Mat Fac Low Low Fac DSF Fac Ext Fac Matter Collected 2818 | 165 243 80 104 124 309 51 292 . 171 60 160 957 102 Remotely . | . . . . . . . . . . . . . . Salvage Created 3856 | . 256 46 184 26 484 125 411 . 42 171 360 1702 49 Parts 180 | . 24 2 . . 27 7 14 . . 7 16 81 2 Haulers Intercepted 3 | . 1 . . . . 1 . . . . 1 . . Recyclers Shooed 7 | . 2 . . . . . . . . . . 5 . Parts Field Recycled . | . . . . . . . . . . . . . . Retrieved Matter . | . . . . . . . . . . . . . . Parts Self-Destructed 19 | . . . . . . . 8 11 . . . . . Prevented . | . . . . . . . . . . . . . . Kills | -11 -10 -10 -9 -9 -8 -7 -7 -7 -6 -6 -5 -5 -4 ------- Run | Yrd Mat Min Mat Min Mat Fac Low Low Fac DSF Fac Ext Fac Combat Hostiles Destroyed 66 | . 4 2 3 11 7 2 13 . . 3 4 17 . Melee 15 | . . . 1 . 3 . . . . 1 2 8 . Guns 9 | . 4 1 . . 1 1 2 . . . . . . Cannons 5 | . . . . . 2 . . . . 2 . 1 . AOE 32 | . . 1 . 11 . 1 9 . . . 2 8 . Classes Destroyed 17 | . 5 . 2 2 3 . 4 . 1 . . . . Worker 6 | . 1 . . . 2 . . . . . . 3 . Builder 9 | . . . 2 . 1 . . . . . . 6 . Tunneler 3 | . . . . 1 1 . . . . . . 1 . Hauler 3 | . 1 . . . . 1 . . . . 1 . . Recycler 10 | . . . 1 . 1 . . . . . 1 7 . Minesweeper 1 | . . . . . . . 1 . . . . . . Mechanic 1 | . . . . . . . . . 1 . . . . Operator 4 | . 2 . . . 1 1 . . . . . . . Watcher 4 | . 1 . . . 2 . . . . . . . 1 Swarmer 5 | . . . . . . . 2 . . . 3 . . Grunt 24 | . 4 2 3 . 3 . 6 . . 1 . 5 . Brawler 3 | . . . . . . . 3 . . . . . . Duelist 4 | . . . . . . . 1 . . . . 3 . Sentry 5 | . . . . . 1 1 1 . . . . 2 . Specialist 3 | . . . . . 1 . . . . 2 . . . Hunter 7 | . . . . . 2 1 . . . . 1 3 . Assembled 11 | . . . . 11 . . . . . . . . . Thug 2 | . . . . . . . . . . . . 2 . Savage 2 | . . . . . . . . . . . . 2 . Butcher 2 | . . . . . . . . . . . . 2 . Best Kill Streak 15 | . 3 1 3 11 3 1 8 . 1 2 4 15 1 Combat Bots Only 11 | . 2 1 2 11 2 1 9 . . 2 3 5 . Max Kills in Single Turn 5 | . 2 1 1 3 1 1 5 . 1 1 3 3 1 Gunslinging . | . . . . . . . . . . . . . . Exploded 5 | . . 1 . 3 . 1 5 . . . 2 3 . Melee 1 | . . . 1 . 1 . . . . 1 1 1 . Uniques/NPCs Destroyed . | . . . . . . . . . . . . . . Combat | -11 -10 -10 -9 -9 -8 -7 -7 -7 -6 -6 -5 -5 -4 -------- Run | Yrd Mat Min Mat Min Mat Fac Low Low Fac DSF Fac Ext Fac Hostile Shots Fired 972 | . 36 30 30 21 64 49 47 . . 170 64 268 193 Missed 324 | . 6 7 7 2 20 15 17 . . 65 26 73 86 Damage Taken 12370 | . 412 381 253 723 776 243 740 . 63 1640 621 4785 1733 Core 3379 | . 52 130 59 241 209 34 78 . . 512 51 844 1169 Absorbed by Shields . | . . . . . . . . . . . . . . Core Remaining (%) 49 | 100 . 27 . 25 62 . . 84 . 39 . 10 . Volleys Fired 209 | . 30 25 2 9 31 25 19 . . 5 14 49 . Largest 2 | . 2 2 1 1 2 2 2 . . 2 1 2 . Hottest 127 | . 70 50 20 33 113 113 108 . . 92 55 127 . Shots Fired 293 | . 57 30 2 9 46 44 26 . . 10 14 55 . Gun 157 | . 55 27 2 . 27 19 8 . . . 12 7 . Cannon 86 | . . . . . 19 21 8 . . 10 . 28 . Launcher 50 | . 2 3 . 9 . 4 10 . . . 2 20 . Special . | . . . . . . . . . . . . . . Kinetic 147 | . 30 27 2 . 19 21 8 . . 10 . 30 . Thermal 96 | . 25 . . . 27 19 8 . . . 12 5 . Explosive 50 | . 2 3 . 9 . 4 10 . . . 2 20 . Electromagnetic . | . . . . . . . . . . . . . . Robot Hit Streak 15 | . 14 7 . 3 6 6 6 . . 5 9 15 . Robot Miss Streak 5 | . 4 1 3 4 3 5 2 . . 3 2 2 . Penetration Max 2 | . . . . . . . . . . . . 2 . Secondary Targets 1 | . 1 . . . . . . . . . . . . Max Gunslinging Chain 1 | . 1 . . . . . . . . . . . . Shots Hit Robots 265 | . 39 25 12 7 42 14 21 . 1 10 14 79 1 Core Hits 183 | . 18 7 . 18 15 7 30 . . 4 8 75 1 Critical Kills 9 | . 1 . . . 1 . . . . . . 7 . Critical Parts Destroyed 14 | . . . 3 1 . . 1 . . . . 9 . Critical Strikes 32 | . 3 . 3 1 1 1 2 . . 1 . 20 . Burn 2 | . 2 . . . . . . . . . . . . Destroy 17 | . 1 . . . . . . . . . . 16 . Blast 2 | . . . . . . 1 1 . . . . . . Smash 6 | . . . 3 1 1 . 1 . . . . . . Sever 5 | . . . . . . . . . . 1 . 4 . Melee Attacks 108 | . . . 15 2 20 . 4 . 1 5 10 50 1 Impact 42 | . . . 15 2 20 . 4 . 1 . . . . Slashing 66 | . . . . . . . . . . 5 10 50 1 Piercing . | . . . . . . . . . . . . . . Sneak Attacks 15 | . . . 3 1 4 . . . 1 . 1 5 . Combat Hostiles . | . . . . . . . . . . . . . . Follow-up Attacks 1 | . . . . . . . . . . . . 1 . Damage Inflicted 12490 | . 563 342 737 815 1430 450 1500 . 102 332 634 5532 53 Guns 1489 | . 468 194 . . 326 108 96 . . . 154 143 . Cannons 1612 | . . . . . 334 215 193 . . 145 . 725 . Explosions 5256 | . 95 117 . 712 . 113 1102 . . . 265 2852 . Melee 4086 | . . . 737 103 770 . 109 . 102 187 215 1812 51 Ramming 47 | . . 31 . . . 14 . . . . . . 2 Kinetic 2081 | . 233 194 . . 334 215 193 . . 145 . 767 . Thermal 1020 | . 235 . . . 326 108 96 . . . 154 101 . Explosive 5256 | . 95 117 . 712 . 113 1102 . . . 265 2852 . Electromagnetic . | . . . . . . . . . . . . . . Impact 1821 | . . . 737 103 770 . 109 . 102 . . . . Slashing 2265 | . . . . . . . . . . 187 215 1812 51 Piercing . | . . . . . . . . . . . . . . Highest Corruption 4 | . . . . 4 . . . . . . . . . Average Corruption 4 | . . . . 4 . . . . . . . . . Corruption Purged . | . . . . . . . . . . . . . . Corruption Blocked . | . . . . . . . . . . . . . . Effects 4 | . . . . 4 . . . . . . . . . Message Errors 1 | . . . . 1 . . . . . . . . . Matter Fused 1 | . . . . 1 . . . . . . . . . Heat Flow Errors 1 | . . . . 1 . . . . . . . . . Alerts 1 | . . . . 1 . . . . . . . . . Overload Shots . | . . . . . . . . . . . . . . Overflow Damage 1344 | . . . 352 127 232 . 109 . 62 . 12 450 . Projectiles 39 | . . . . . 13 . 3 . . . . 23 . Explosions 352 | . . . . 66 . . 70 . . . . 216 . Melee 953 | . . . 352 61 219 . 36 . 62 . 12 211 . Knockbacks 22 | . . 1 5 1 6 2 . . 1 1 . 5 . Impact 9 | . . 1 5 1 1 . . . 1 . . . . Kinetic 12 | . . . . . 4 2 . . . 1 . 5 . Secondary 1 | . . . . . 1 . . . . . . . . Self-Inflicted Damage 763 | . 41 21 . 140 . . 62 . . . 16 482 1 Shots 17 | . 1 2 . 5 . . 1 . . . 1 7 . Rammed 3 | . . . . . . . . . . . . . 3 Targets Rammed 14 | . . 9 . . . 2 . . . . . . 3 Kicked 11 | . . 9 . . . 2 . . . . . . . Crushed . | . . . . . . . . . . . . . . Highest Temperature 302 | . 214 44 . 141 6 32 8 . . 40 . 302 . Average Temperature 51 | . 76 12 . 45 3 18 7 . . 31 . 61 . Received Heat Transfer 3069 | . 231 207 114 60 198 60 144 . . 660 . 1260 135 Effects 3 | . . . . . . . . . . . . 3 . Interference 3 | . . . . . . . . . . . . 3 . Siege Activations . | . . . . . . . . . . . . . . Robots Corrupted 8 | . . . 3 1 2 . 1 . 1 . . . . Combat Hostiles 4 | . . . 2 . 1 . 1 . . . . . . Parts Fried 11 | . . . 8 . 2 . . . 1 . . . . Impact Corruptions 26 | . . . 10 3 10 . 1 . 2 . . . . Robots Melted . | . . . . . . . . . . . . . . Combat Hostiles . | . . . . . . . . . . . . . . Parts Melted 2 | . 2 . . . . . . . . . . . . Heat Transferred 2331 | . 851 . . . 629 222 185 . . . 296 148 . Parts Sabotaged . | . . . . . . . . . . . . . . Parts Stolen . | . . . . . . . . . . . . . . Parts Stripped . | . . . . . . . . . . . . . . Power Chain Reactions . | . . . . . . . . . . . . . . Alert | -11 -10 -10 -9 -9 -8 -7 -7 -7 -6 -6 -5 -5 -4 ------- Run | Yrd Mat Min Mat Min Mat Fac Low Low Fac DSF Fac Ext Fac Peak Influence 634 | . 154 83 185 96 634 613 . . 122 151 284 508 416 Initial 219 | . . 17 31 67 31 219 . . 112 85 26 138 184 Average 209 | . 67 75 69 73 315 306 . . 116 98 67 311 262 Maximum Alert Level 2 | . . . . . 2 2 . . . . 1 2 2 Low Security (%) 52 | 100 100 100 100 100 27 . . . 100 100 93 19 27 Level 1 34 | . . . . . 35 88 . . . . 6 59 68 Level 2 12 | . . . . . 36 11 . . . . . 20 3 Level 3 . | . . . . . . . . . . . . . . Level 4 . | . . . . . . . . . . . . . . Level 5 . | . . . . . . . . . . . . . . High Security . | . . . . . . . . . . . . . . Max Security . | . . . . . . . . . . . . . . Squads Dispatched 20 | . 1 . 1 . 4 1 . . . 2 4 4 3 Investigation 4 | . . . 1 . . 1 . . . . 2 . . Extermination 1 | . . . . . . . . . . . 1 . . Reinforcement 15 | . 1 . . . 4 . . . . 2 1 4 3 Assault . | . . . . . . . . . . . . . . Garrison . | . . . . . . . . . . . . . . Intercept . | . . . . . . . . . . . . . . Searches Triggered . | . . . . . . . . . . . . . . Construction Impeded 3 | . . . . . . . . . . . . 3 . Haulers Reinforced 1 | . . . . . . . . . . . 1 . . Active Scanning Responses . | . . . . . . . . . . . . . . Cargo Convoy Interrupts . | . . . . . . . . . . . . . . Stealth | -11 -10 -10 -9 -9 -8 -7 -7 -7 -6 -6 -5 -5 -4 --------- Run | Yrd Mat Min Mat Min Mat Fac Low Low Fac DSF Fac Ext Fac Distress Signals 12 | . 1 . 1 . 5 1 . . . . 2 1 1 Communications Jammed . | . . . . . . . . . . . . . . Distress Signals . | . . . . . . . . . . . . . . Times Spotted 183 | . 8 4 16 14 41 4 12 . . 11 11 33 29 Peak Tracking Total 15 | . 3 2 8 13 8 2 9 . . 8 8 7 15 Tactical Retreats 27 | . . . 2 1 15 1 . . . 1 2 3 2 Traps | -11 -10 -10 -9 -9 -8 -7 -7 -7 -6 -6 -5 -5 -4 ------- Run | Yrd Mat Min Mat Min Mat Fac Low Low Fac DSF Fac Ext Fac Traps Triggered 6 | . 2 . 1 . . 1 . . 1 . . 1 . Indirectly . | . . . . . . . . . . . . . . Trap Hack Attempts . | . . . . . . . . . . . . . . Triggered . | . . . . . . . . . . . . . . Disarmed . | . . . . . . . . . . . . . . Reprogrammed . | . . . . . . . . . . . . . . Reused . | . . . . . . . . . . . . . . Traps Extracted . | . . . . . . . . . . . . . . Installed . | . . . . . . . . . . . . . . Triggered . | . . . . . . . . . . . . . . Machines | -11 -10 -10 -9 -9 -8 -7 -7 -7 -6 -6 -5 -5 -4 ---------- Run | Yrd Mat Min Mat Min Mat Fac Low Low Fac DSF Fac Ext Fac Machines Disabled 21 | . . 2 . . . 15 2 . . . 1 1 . Max in Single Turn 6 | . . 1 . . . 6 2 . . . 1 1 . Machines Repaired . | . . . . . . . . . . . . . . Machines Dismantled . | . . . . . . . . . . . . . . Machines Sabotaged . | . . . . . . . . . . . . . . Overloaded Fab Kills . | . . . . . . . . . . . . . . Hacking | -11 -10 -10 -9 -9 -8 -7 -7 -7 -6 -6 -5 -5 -4 --------- Run | Yrd Mat Min Mat Min Mat Fac Low Low Fac DSF Fac Ext Fac Machines Accessed 22 | . 5 . 3 1 2 1 . . 2 . 3 5 . Terminals 17 | . 3 . 3 . 2 1 . . 1 . 2 5 . Fabricators . | . . . . . . . . . . . . . . Repair Stations 2 | . . . . . . . . . 1 . 1 . . Recycling Units 2 | . 2 . . . . . . . . . . . . Scanalyzers . | . . . . . . . . . . . . . . Garrison Access . | . . . . . . . . . . . . . . Total Hacks 49 | . 12 . 9 1 6 1 . . 4 . 7 9 . Successful 22 | . 7 . 3 1 2 1 . . 1 . 2 5 . Failed 27 | . 5 . 6 . 4 . . . 3 . 5 4 . Catastrophic 6 | . 1 . 2 . . . . . 1 . . 2 . Database Lockouts . | . . . . . . . . . . . . . . Manual 25 | . 6 . 9 . 6 . . . . . . 4 . Terminals 38 | . 7 . 9 . 6 1 . . 3 . 3 9 . Fabricators . | . . . . . . . . . . . . . . Repair Stations 5 | . . . . . . . . . 1 . 4 . . Recycling Units 5 | . 5 . . . . . . . . . . . . Scanalyzers . | . . . . . . . . . . . . . . Garrison Access . | . . . . . . . . . . . . . . Terminal Hacks 10 | . 2 . . 1 1 1 . . 1 . 1 3 . Open Door 5 | . . . . 1 . . . . . . 1 3 . Open DSF 2 | . . . . . . 1 . . 1 . . . . Terminal Index 1 | . 1 . . . . . . . . . . . . Recall Reinforcements 1 | . . . . . 1 . . . . . . . . Zone Layout 1 | . 1 . . . . . . . . . . . . Fabricator Hacks . | . . . . . . . . . . . . . . Repair Station Hacks 1 | . . . . . . . . . . . 1 . . Scan Component 1 | . . . . . . . . . . . 1 . . Recycling Unit Hacks 2 | . 2 . . . . . . . . . . . . Report Inventory 1 | . 1 . . . . . . . . . . . . Retrieve Components 1 | . 1 . . . . . . . . . . . . Scanalyzer . | . . . . . . . . . . . . . . Garrison Access Hacks . | . . . . . . . . . . . . . . Unauthorized Hacks 9 | . 3 . 3 . 1 . . . . . . 2 . Terminals 9 | . 3 . 3 . 1 . . . . . . 2 . Assimilate 1 | . . . . . . . . . . . . 1 . Botnet 8 | . 3 . 3 . 1 . . . . . . 1 . Fabricators . | . . . . . . . . . . . . . . Repair Stations . | . . . . . . . . . . . . . . Recycling Units . | . . . . . . . . . . . . . . Scanalyzers . | . . . . . . . . . . . . . . Garrison Access . | . . . . . . . . . . . . . . Data Cores Recovered 1 | . 1 . . . . . . . . . . . . Used . | . . . . . . . . . . . . . . Hacking Detections 20 | . 5 . 3 . 2 1 . . 2 . 2 5 . Full Trace Events 5 | . . . 2 . 1 . . . . . 2 . . Feedback Events . | . . . . . . . . . . . . . . Feedback Blocked . | . . . . . . . . . . . . . . Robot Schematics Acquired . | . . . . . . . . . . . . . . Robots Built . | . . . . . . . . . . . . . . Authchips . | . . . . . . . . . . . . . . Time . | . . . . . . . . . . . . . . Total Robot Build Rating . | . . . . . . . . . . . . . . Part Schematics Acquired . | . . . . . . . . . . . . . . Parts Built . | . . . . . . . . . . . . . . Authchips . | . . . . . . . . . . . . . . Time . | . . . . . . . . . . . . . . Total Part Build Rating . | . . . . . . . . . . . . . . Parts Repaired . | . . . . . . . . . . . . . . Time . | . . . . . . . . . . . . . . Parts Recycled . | . . . . . . . . . . . . . . Recycled Matter . | . . . . . . . . . . . . . . Retrieved Matter . | . . . . . . . . . . . . . . Retrieved Components 6 | . 6 . . . . . . . . . . . . Parts Scanalyzed . | . . . . . . . . . . . . . . Part Schematics Acquired . | . . . . . . . . . . . . . . Parts Damaged . | . . . . . . . . . . . . . . Bothacking | -11 -10 -10 -9 -9 -8 -7 -7 -7 -6 -6 -5 -5 -4 ------------ Run | Yrd Mat Min Mat Min Mat Fac Low Low Fac DSF Fac Ext Fac Used RIF Installer . | . . . . . . . . . . . . . . Robots Hacked . | . . . . . . . . . . . . . . Non-combat . | . . . . . . . . . . . . . . Combat . | . . . . . . . . . . . . . . Robot Hacks Applied . | . . . . . . . . . . . . . . Relay Couplers Released . | . . . . . . . . . . . . . . Fabnet Peak Effective % . | . . . . . . . . . . . . . . Robots Rewired 15 | . . . . . . . 2 . . . . 13 . Allies Hacked . | . . . . . . . . . . . . . . Hacks Repelled . | . . . . . . . . . . . . . . Allies | -11 -10 -10 -9 -9 -8 -7 -7 -7 -6 -6 -5 -5 -4 -------- Run | Yrd Mat Min Mat Min Mat Fac Low Low Fac DSF Fac Ext Fac Total Allies 18 | . . . . . . . 2 . . . . 16 . Largest Group 9 | . . . . . . . 2 2 2 1 . 9 . Highest-Rated Group 244 | . . . . . . . 32 32 32 16 . 244 . Highest-Rated Ally 39 | . . . . . . . 16 16 16 16 . 39 . Total Orders . | . . . . . . . . . . . . . . Ally Attacks 313 | . . . . . 190 . . . . 4 . 119 . Total Damage 3160 | . . . . . 773 . . . . 44 . 2343 . Kills 21 | . . . . . 9 . . . . . . 12 . Allies Corrupted . | . . . . . . . . . . . . . . Allies Melted . | . . . . . . . . . . . . . . Intel | -11 -10 -10 -9 -9 -8 -7 -7 -7 -6 -6 -5 -5 -4 ------- Run | Yrd Mat Min Mat Min Mat Fac Low Low Fac DSF Fac Ext Fac Robot Analysis Total . | . . . . . . . . . . . . . . Derelict Logs Recovered 1 | . . . . . . . 1 . . . . . . Drone Launches 45 | . . . . 3 42 . . . . . . . . Drone Recoveries 42 | . . . . . 42 . . . . . . . . Exploration | -11 -10 -10 -9 -9 -8 -7 -7 -7 -6 -6 -5 -5 -4 ------------- Run | Yrd Mat Min Mat Min Mat Fac Low Low Fac DSF Fac Ext Fac Turns Passed 5572 | 68 516 226 252 240 844 373 924 69 149 140 298 1079 394 Spaces Moved 3587 | 44 311 132 146 156 466 213 554 37 73 55 156 485 759 Core 166 | 9 . . . 18 . . . . . 4 . 28 107 Treads 97 | . 54 . . . . . . . . . . 43 . Legs 2512 | 35 257 132 146 69 375 213 554 37 73 51 156 414 . Wheels 160 | . . . . 69 91 . . . . . . . . Hover . | . . . . . . . . . . . . . . Flight 652 | . . . . . . . . . . . . . 652 Fastest Speed 40 | 50 120 120 120 80 95 114 114 190 190 190 120 50 40 Average Speed 114 | 121 127 122 120 124 115 114 148 190 190 200 137 129 48 Slowest Speed 550 | 190 190 190 120 250 122 114 260 190 190 350 260 550 250 Overloaded Moves . | . . . . . . . . . . . . . . Propulsion Burnouts . | . . . . . . . . . . . . . . Robots Hopped 1 | . . . . . . . . . . . . . 1 Cave-ins Triggered . | . . . . . . . . . . . . . . Exploration Rate (%) 27 | 3 46 16 22 42 35 9 67 7 3 47 6 51 26 Regions Visited 13 Branch Regions 5 Pre-discovered Areas . | . . . . . . . . . . . . . . Known Exits Taken 1 | . . . . . . . . . 1 . . . . Unknown Exits Taken 11 | 1 1 1 1 1 1 1 1 1 . . 1 1 . Scrap Searched 3 | . . 1 . . . . 2 . . . . . . Spaces Dug . | . . . . . . . . . . . . . . Terrain Destroyed 433 | . 9 19 . 64 4 49 91 . . . 21 176 . Melee . | . . . . . . . . . . . . . . Projectile 11 | . . . . . 4 . . . . . . 7 . AOE 422 | . 9 19 . 64 . 49 91 . . . 21 169 . Terrain Rammed . | . . . . . . . . . . . . . . Walls Destroyed . | . . . . . . . . . . . . . . Machines Disabled . | . . . . . . . . . . . . . . Actions | -11 -10 -10 -9 -9 -8 -7 -7 -7 -6 -6 -5 -5 -4 --------- Run | Yrd Mat Min Mat Min Mat Fac Low Low Fac DSF Fac Ext Fac Total 4565 | 55 376 168 193 187 700 298 621 36 81 69 206 798 777 Wait 252 | . 9 . 19 14 118 47 3 . . . 3 38 1 Move 3572 | 43 310 131 145 155 465 212 553 36 72 54 155 484 757 Hop 1 | . . . . . . . . . . . . . 1 Pick Up 53 | 6 6 . 4 . 13 1 3 . 2 2 6 6 4 Fast Attach 81 | 6 4 3 4 5 11 3 2 . 1 1 9 27 5 Attach 38 | . 3 . 2 1 6 2 3 . 3 . 7 10 1 Detach 10 | . 1 . . 1 4 2 . . . . 1 1 . Swap 25 | . 6 . . . 7 2 2 . 1 . . 7 . Drop 57 | . 7 . 2 . 25 2 . . 1 2 1 13 4 Fire 209 | . 30 25 2 9 31 25 19 . . 5 14 49 . Melee 107 | . . . 15 2 20 . 4 . 1 5 10 49 1 Ram 3 | . . . . . . . . . . . . . 3 Kick 11 | . . 9 . . . 2 . . . . . . . Crush . | . . . . . . . . . . . . . . Escape Stasis . | . . . . . . . . . . . . . . Rewire 146 | . . . . . . . 32 . . . . 114 . Trap . | . . . . . . . . . . . . . . Miscellaneous . | . . . . . . . . . . . . . . Route ------- -11/Scrapyard -10/Materials (discovered 2 exits: *Mat / [*Min]) -10/Mines -9/Materials -9/Mines -8/Materials -7/Factory -7/Lower Caves -7/Lower Caves -6/Factory -6/DSF -5/Factory -5/Extension -4/Factory (discovered 1 exit: [*Res]) History --------- Turn | Location | Event 18 | -11/Scrapyard | Discovered new exit (range 16) 69 | -11/Scrapyard | Entered Materials 312 | -10/Materials | Build established: Mutant 439 | -10/Materials | Discovered new exit (range 15) 547 | -10/Materials | Discovered new exit (range 14) 585 | -10/Materials | Entered Mines 629 | -10/Mines | Core integrity fell below 50% 683 | -10/Mines | Lost 3 parts (1n1u1w) 745 | -10/Mines | Discovered new exit (range 10) 811 | -10/Mines | Entered Materials 811 | -9/Materials | Evolved 2 slots: Propulsion x2 1039 | -9/Materials | Discovered new exit (range 13) 1063 | -9/Materials | Entered Mines 1113 | -9/Mines | Assembled infested the area 1125 | -9/Mines | Received a Rocket Launcher from a helpful Derelict 1164 | -9/Mines | Destroyed 11 combat bots 1172 | -9/Mines | Lost 3 parts (1p2n) 1179 | -9/Mines | Core integrity fell below 50% 1269 | -9/Mines | Discovered new exit (range 9) 1275 | -9/Mines | Found the Drone Emporium 1284 | -9/Mines | Found Prototype Device 1284 | -9/Mines | Identified Thief Drone Bay 1303 | -9/Mines | Entered Materials 1303 | -8/Materials | Accompanied by 3 allies 1303 | -8/Materials | Evolved 2 slots: Utility x2 2135 | -8/Materials | Discovered new exit (range 11) 2142 | -8/Materials | Build established: Scavenger-Mutant 2147 | -8/Materials | Entered Factory 2147 | -7/Factory | Evolved 2 slots: Power x1, Propulsion x1 2512 | -7/Factory | Discovered new exit (range 7) 2520 | -7/Factory | Entered Lower Caves 2833 | -7/Lower Caves | Learned Factory garrison access intel 2891 | -7/Lower Caves | Attracted the attention of an 0b10 outpost 2959 | -7/Lower Caves | Destroyed 9 combat bots 2967 | -7/Lower Caves | Lost 8 parts (1p5n1u1w) 3147 | -7/Lower Caves | Encountered a Warlord checkpoint 3203 | -7/Lower Caves | Build established: Mutant 3421 | -7/Lower Caves | Discovered new exit (range 12) 3444 | -7/Lower Caves | Entered another Lower Caves area 3444 | -7/Lower Caves | Accompanied by 2 allies 3500 | -7/Lower Caves | Discovered new exit (range 6) 3513 | -7/Lower Caves | Entered Factory 3513 | -6/Factory | Accompanied by 2 allies 3513 | -6/Factory | Evolved 2 slots: Utility x1, Weapon x1 3514 | -6/Factory | Loaded intel: 4 garrison access locations 3660 | -6/Factory | Identified exit to DSF 3662 | -6/Factory | Entered DSF 3662 | -6/DSF | Accompanied by 1 ally 3697 | -6/DSF | Additional patrols routed to DSF 3744 | -6/DSF | Discovered new exit (range 16) 3802 | -6/DSF | Entered Factory 3802 | -5/Factory | Evolved 2 slots: Utility x2 3823 | -5/Factory | Lost 10 parts (2p3n3u2w) 4091 | -5/Factory | Discovered new exit (range 9) 4100 | -5/Factory | Entered Extension 4171 | -5/Extension | Build established: Scavenger-Mutant 4392 | -5/Extension | Rescued a captive Derelict 4623 | -5/Extension | Lost 8 parts (2p3n2u1w) 4798 | -5/Extension | Rescued a captive Derelict 4799 | -5/Extension | Rescued a captive Derelict 4828 | -5/Extension | Spotted B-75 Beast 4845 | -5/Extension | Spotted B-75 Beast 4850 | -5/Extension | Disrupted transfer network 4870 | -5/Extension | Allies destroyed B-75 Beast 4878 | -5/Extension | Core integrity fell below 50% 4879 | -5/Extension | Allies destroyed B-75 Beast 4881 | -5/Extension | Lost 3 allies 4899 | -5/Extension | Lost 14 parts (2p6n3u3w) 4941 | -5/Extension | Discovered new exit (range 3) 4969 | -5/Extension | Lost 6 allies 5059 | -5/Extension | Lost 7 parts (5n2w) 5157 | -5/Extension | Core integrity fell below 20% 5179 | -5/Extension | Entered Factory 5179 | -4/Factory | Evolved 2 slots: Propulsion x1, Utility x1 5205 | -4/Factory | Lost 5 parts (1p2n1u1w) 5563 | -4/Factory | Core integrity fell below 50% 5569 | -4/Factory | Core integrity fell below 20% 5571 | -4/Factory | Discovered new exit (range 16) 5573 | -4/Factory | Destroyed by H-77 Assassin with Coil Gun Last Messages --------------- 05565_ K-01 Serf collects debris. 05565_ Slug penetrates Wall. 05565_ Penetrated by Slug. 05565_ Broken Adv. Cryofiber Web destroyed. 05565_ Penetrated by Slug. 05565_ K-01 Serf collects debris. 05566_ R-10 Processor collects VTOL Module. 05566_ Slammed into K-01 Serf. 05566_ R-10 Processor collects VTOL Module. 05568_ Penetrated by Slug. 05568_ S-27 Virus destroyed. 05568_ Med. Storage Unit destroyed. 05569_ R-10 Processor collects VTOL Module. 05570_ Penetrated by Slug. 05570_ K-01 Serf collects debris. 05571_ EXIT=FOUND 05571_ Slug penetrates Wall. 05571_ Penetrated by Slug. 05572_ S-27 Virus destroyed. [Achievement: Just Browsing] Map ----- +----------------------------------------------------+ | ????????????????????????# #?????# """ #???? | | ????????????????????????# #?????# """ #???? | | ????????????????????????# #?????# """ #???? | | ????????????????????????# #?????# ##### | | ????????????????????????# #?????# """ / | | ????????????????????????# #?????# """ ##### | | ????????????????????????# #?????# """ #???? | | ????????????????????????# #?????# ]#???? | | ????????????????????????# ################???? | | ????????????????????????# # #?????? | | ??????????????########### # #?????? | | ?????????????? # # #?????? | | ??????????????"""" """" # # #?????? | | ????????????? """" """" # # #?????? | | ???????????# """" """" # h# % #?????? | | ???????????# """" """" # hhh% #?????? | | ???????????# + sg[%= #?????? | | ???????????# """" """ # %g#=* #?????? | | ???????????# """" """ # [R# #?????? | | ????????????? """" """ # # #?????? | | ??????????????"""" # # #?????? | | ?????????????? ] # ##############?????? | | ?????????????? # #??????????????????? | | ?????????????############ #??????????????????? | | ????????????????????????# #??????????????????? | | ????????????????????????#@ #??????????????????? | | ????????????????????????# ^#??????????????????? | | ????????????????????????# #??????????????????? | | ????????????????????????# b #??????????????????? | | ????????????????????????; #??????????????????? | | ????????????????????????# g #??????????????????? | | ????????????????????????# #??????????????????? | | ????????????????????????# gg#??????????????????? | | ???????????????????????? ??????????????????? | | ???????????????????????? ?????????????????? | | ???????????????????????? ?????????????????? | | ???????????????????????? Y ????????????????? | | ???????????????????????? < ???????????????? | | ???????????????????????? ????????????????? | | ???????????????????????? ?????????A?????????? | | ???????????????????????? ?????????????????????? | | ?????????????????????????????????????????????????? | | ?????????????????????????????????????????????????? | | ?????????????????????????????????????????????????? | | ?????????????????????????????????????????????????? | | ?????????????????????????????????????????????????? | | ?????????????????????????????????????????????????? | | ?????????????????????????????????????????????????? | | ?????????????????????????????????????????????????? | | ?????????????????????????????????????????????????? | +----------------------------------------------------+ Best States ------------- Heat Dissipation 78 Energy Generation 32 Energy Capacity 525 Matter Stores 300 Matter Capacity 300 Sight Range 20 Terrain Scan Density 10 Additional Mass Support 9 Base Temperature (-) 200 Armor Coverage 300 Phase Shifting 5 Evasion (%) 62 Targeting Accuracy 16 Melee Accuracy 5 Recoil Reduction 2 Kinecelleration 30 Offensive Hacking 10 Item Schematics ----------------- None Robot Schematics ------------------ None Fabricated ------------ Nothing Alien Tech Used ----------------- None Achievements -------------- GoHome() I Survived The Infestation Just Browsing Leap Before You Look Quick And Dirty Challenges ------------ None Game ------ Seed RemotePlatingLeg Manual? 0 Play Time 01:27:26 Cumulative 21.4 hours Start 2024.08.18 @ 23:45:42 End 2024.08.19 @ 01:13:50 Sessions 1 Manual Loads 0 Difficulty Rogue Special Mode None Game No. 23 Rogue 23 Adventurer 0 Explorer 0 Win Type - Total 0 Types 0/0/0/0/0/0/0/0/0 Lore% 7 Gallery% 25 Achievement% 21 Wizard Run 0 Options --------- Layout 1 ASCII 0 Keyboard 0 Movement Mouse Keybinds 0 Fullscreen 2 Font 32/SmallcapsGlow Map View 50x35 Zoom Use 0% Tactical HUD 1 Map Filters NONE Filters NONE Steam X RUN: 30feb340-d23c-4fbb-aba7-c8a530b2168f